fUST/lending_fUST_20240624
["ID","MTS","AMOUNT","RATE_DAILY","PERIOD"]
[330209597,1719165033361,-370.85544557,0.00016438,2]
[330209598,1719165033371,-500.0,0.00016438,2]
[330209600,1719165033379,-344.40335241,0.00016438,2]
[330209602,1719165033389,-500.0,0.00016438,2]
[330209604,1719165033398,-617.78,0.00016438,2]
[330209605,1719165033407,-500.0,0.00016438,2]
[330209607,1719165033417,-500.0,0.00016438,2]
[330209609,1719165033431,-500.0,0.00016438,2]
[330209611,1719165033440,-723.96,0.00016438,2]
[330209612,1719165033449,-500.0,0.00016438,2]
[330209614,1719165033458,-500.0,0.00016438,2]
[330209616,1719165033467,-500.0,0.00016438,2]
[330209618,1719165033476,-513.10453414,0.00016438,2]
[330209619,1719165033485,-500.0,0.00016438,2]
[330209621,1719165033494,-927.98,0.00016438,2]
[330209623,1719165033503,-199.57799874,0.00016438,2]
[330209625,1719165033513,-500.0,0.00016438,2]
[330209626,1719165033522,-1386.4,0.00016438,2]
[330209628,1719165033531,-500.0,0.00016438,2]
[330209630,1719165033541,-510.33540901,0.00016438,2]
[330209632,1719165033550,-955.87,0.00016438,2]
[330209634,1719165033559,-500.0,0.00016438,2]
[330209635,1719165033569,-838.3,0.00016438,2]
[330209637,1719165033578,-5290.1,0.00016438,2]
[330209639,1719165033587,-503.41432655,0.00016438,2]
[330209640,1719165033597,-508.40072621,0.00016438,2]
[330209642,1719165033606,-507.04780828,0.00016438,2]
[330209644,1719165033616,-752.07,0.00016438,2]
[330209646,1719165033625,-176.88487723,0.00016438,2]
[330209647,1719165033634,-500.0,0.00016438,2]
[330209649,1719165033643,-507.18702161,0.00016438,2]
[330209651,1719165033653,-500.0,0.00016438,2]
[330209653,1719165033662,-500.0,0.00016438,2]
[330209655,1719165033674,-500.0,0.00016438,2]
[330209667,1719165033808,-500.0,0.00016438,2]
[330209668,1719165033817,-500.0,0.00016438,2]
[330209670,1719165033827,-500.0,0.00016438,2]
[330209672,1719165033836,-1475.86,0.00016438,2]
[330209674,1719165033845,-500.0,0.00016438,2]
[330209676,1719165033855,-500.0,0.00016438,2]
[330209677,1719165033864,-500.0,0.00016438,2]
[330209679,1719165033873,-500.0,0.00016438,2]
[330209681,1719165033883,-1262.76,0.00016438,2]
[330209683,1719165033892,-525.31879639,0.00016438,2]
[330209684,1719165033901,-500.0,0.00016438,2]
[330209686,1719165033911,-500.0,0.00016438,2]
[330209688,1719165033921,-1270.62,0.00016438,2]
[330209690,1719165033930,-500.0,0.00016438,2]
[330209691,1719165033940,-500.0,0.00016438,2]
[330209693,1719165033949,-407.76719673,0.00016438,2]
[330209695,1719165033958,-500.0,0.00016438,2]
[330209697,1719165033968,-500.0,0.00016438,2]
[330209699,1719165033978,-500.0,0.00016438,2]
[330209700,1719165033987,-500.0,0.00016438,2]
[330209702,1719165033996,-500.0,0.00016438,2]
[330209704,1719165034006,-500.0,0.00016438,2]
[330209706,1719165034016,-500.0,0.00016438,2]
[330209707,1719165034026,-500.0,0.00016438,2]
[330209709,1719165034035,-500.0,0.00016438,2]
[330209711,1719165034044,-500.0,0.00016438,2]
[330209713,1719165034053,-500.0,0.00016438,2]
[330209715,1719165034062,-705.32,0.00016438,2]
[330209716,1719165034072,-500.0,0.00016438,2]
[330209718,1719165034081,-500.0,0.00016438,2]
[330209720,1719165034090,-500.0,0.00016438,2]
[330209722,1719165034102,-158.77840072,0.00016438,2]
[330209723,1719165034114,-500.0,0.00016438,2]
[330209725,1719165034123,-500.0,0.00016438,2]
[330209727,1719165034132,-151.0,0.00016438,2]
[330209729,1719165034143,-151.0,0.00016438,2]
[330209730,1719165034152,-151.0,0.00016438,2]
[330209732,1719165034160,-151.0,0.00016438,2]
[330209734,1719165034171,-151.0,0.00016438,2]
[330209736,1719165034182,-151.0,0.00016438,2]
[330209738,1719165034193,-151.0,0.00016438,2]
[330209739,1719165034203,-500.0,0.00016438,2]
[330209741,1719165034212,-151.0,0.00016438,2]
[330209743,1719165034222,-151.0,0.00016438,2]
[330209745,1719165034231,-151.0,0.00016438,2]
[330209747,1719165034241,-500.0,0.00016438,2]
[330209749,1719165034250,-151.0,0.00016438,2]
[330209751,1719165034259,-151.0,0.00016438,2]
[330209753,1719165034268,-151.0,0.00016438,2]
[330209755,1719165034277,-151.0,0.00016438,2]
[330209757,1719165034286,-151.0,0.00016438,2]
[330209758,1719165034295,-190.84565776,0.00016438,2]
[330209759,1719165034303,-753.99,0.00016438,2]
[330209760,1719165034312,-944.16,0.00016438,2]
[330209761,1719165034321,-500.0,0.00016438,2]
[330209762,1719165034330,-500.0,0.00016438,2]
[330209763,1719165034339,-500.0,0.00016438,2]
[330209764,1719165034348,-504.26366966,0.00016438,2]
[330209765,1719165034357,-625.37,0.00016438,2]
[330209766,1719165034366,-625.37,0.00016438,2]
[330209767,1719165034376,-625.37,0.00016438,2]
[330209768,1719165034385,-625.37,0.00016438,2]
[330209769,1719165034394,-625.37,0.00016438,2]
[330209770,1719165034403,-625.37,0.00016438,2]
[330209771,1719165034412,-500.0,0.00016438,2]
[330209772,1719165034423,-625.37,0.00016438,2]
[330209773,1719165034432,-500.0,0.00016438,2]
[330209774,1719165034441,-625.37,0.00016438,2]
[330209775,1719165034450,-625.37,0.00016438,2]
[330209776,1719165034459,-625.37,0.00016438,2]
[330209777,1719165034468,-625.37,0.00016438,2]
[330209778,1719165034477,-625.37,0.00016438,2]
[330209779,1719165034486,-625.37,0.00016438,2]
[330209780,1719165034495,-625.37,0.00016438,2]
[330209781,1719165034504,-625.37,0.00016438,2]
[330209782,1719165034513,-500.0,0.00016438,2]
[330209783,1719165034522,-625.37,0.00016438,2]
[330209784,1719165034531,-500.0,0.00016438,2]
[330209785,1719165034540,-350.87888002,0.00016438,2]
[330209786,1719165034562,-149.12111998,0.00016438,2]
[330209787,1719165034571,-500.0,0.00016438,2]
[330209788,1719165034580,-500.0,0.00016438,2]
[330209789,1719165034589,-936.14,0.00016438,2]
[330209790,1719165034598,-500.0,0.00016438,2]
[330209791,1719165034607,-500.0,0.00016438,2]
[330209792,1719165034617,-2130.19,0.00016438,2]
[330209793,1719165034626,-500.0,0.00016438,2]
[330209794,1719165034635,-696.04888002,0.00016438,2]
[330209795,1719165034646,-184.47111998,0.00016438,2]
[330209796,1719165034655,-500.0,0.00016438,2]
[330209797,1719165034664,-500.0,0.00016438,2]
[330209799,1719165034675,-500.0,0.00016438,2]
[330209800,1719165034684,-500.0,0.00016438,2]
[330209801,1719165034693,-500.0,0.00016438,2]
[330209802,1719165034702,-205.93837665,0.00016438,2]
[330209803,1719165034714,-294.06162335,0.00016438,2]
[330209805,1719165034723,-500.0,0.00016438,2]
[330209807,1719165034732,-500.0,0.00016438,2]
[330209809,1719165034741,-2386.14,0.00016438,2]
[330209810,1719165034750,-151.0,0.00016438,2]
[330209812,1719165034759,-500.0,0.00016438,2]
[330209814,1719165034768,-151.0,0.00016438,2]
[330209815,1719165034777,-151.0,0.00016438,2]
[330209816,1719165034788,-500.0,0.00016438,2]
[330209817,1719165034797,-500.0,0.00016438,2]
[330209818,1719165034806,-151.0,0.00016438,2]
[330209819,1719165034815,-151.0,0.00016438,2]
[330209820,1719165034824,-151.0,0.00016438,2]
[330209821,1719165034832,-151.0,0.00016438,2]
[330209822,1719165034842,-151.0,0.00016438,2]
[330209823,1719165034851,-151.0,0.00016438,2]
[330209824,1719165034860,-500.0,0.00016438,2]
[330209825,1719165034869,-151.0,0.00016438,2]
[330209826,1719165034878,-151.0,0.00016438,2]
[330209827,1719165034888,-151.0,0.00016438,2]
[330209828,1719165034897,-151.0,0.00016438,2]
[330209829,1719165034906,-151.0,0.00016438,2]
[330209830,1719165034915,-1364.45,0.00016438,2]
[330209831,1719165034928,-175.915812,0.00016438,2]
[330209832,1719165034938,-500.0,0.00016438,2]
[330209833,1719165034949,-151.0,0.00016438,2]
[330209834,1719165034958,-151.0,0.00016438,2]
[330209835,1719165034968,-151.0,0.00016438,2]
[330209836,1719165034976,-151.0,0.00016438,2]
[330209837,1719165034987,-151.0,0.00016438,2]
[330209838,1719165034996,-151.0,0.00016438,2]
[330209839,1719165035005,-151.0,0.00016438,2]
[330209840,1719165035015,-151.0,0.00016438,2]
[330209841,1719165035024,-552.97381567,0.00016438,2]
[330209842,1719165035034,-500.0,0.00016438,2]
[330209843,1719165035044,-500.0,0.00016438,2]
[330209844,1719165035054,-500.0,0.00016438,2]
[330209845,1719165035063,-730.13,0.00016438,2]
[330209846,1719165035073,-1696.69,0.00016438,2]
[330209847,1719165035083,-628.51862753,0.00016438,2]
[330209848,1719165035093,-517.74,0.00016438,2]
[330209849,1719165035108,-500.0,0.00016438,2]
[330209850,1719165035118,-500.0,0.00016438,2]
[330209851,1719165035127,-500.0,0.00016438,2]
[330209852,1719165035136,-500.0,0.00016438,2]
[330209853,1719165035147,-500.0,0.00016438,2]
[330209854,1719165035156,-1565.02,0.00016438,2]
[330209855,1719165035166,-500.0,0.00016438,2]
[330209856,1719165035181,-500.0,0.00016438,2]
[330209857,1719165035191,-500.0,0.00016438,2]
[330209858,1719165035200,-752.89,0.00016438,2]
[330209859,1719165035209,-552.06982032,0.00016438,2]
[330209860,1719165035218,-500.0,0.00016438,2]
[330209861,1719165035226,-500.0,0.00016438,2]
[330209862,1719165035235,-1764.84,0.00016438,2]
[330209863,1719165035245,-500.0,0.00016438,2]
[330209864,1719165035254,-500.0,0.00016438,2]
[330209865,1719165035263,-2233.85,0.00016438,2]
[330209866,1719165035272,-151.0,0.00016438,2]
[330209867,1719165035282,-151.0,0.00016438,2]
[330209868,1719165035292,-247.052392,0.00016438,2]
[330209869,1719165035302,-719.8,0.00016438,2]
[330209870,1719165035311,-199.56487531,0.00016438,2]
[330209871,1719165035321,-151.0,0.00016438,2]
[330209872,1719165035330,-151.0,0.00016438,2]
[330209873,1719165035340,-297.462348,0.00016438,2]
[330209874,1719165035349,-151.0,0.00016438,2]
[330209875,1719165035359,-297.462348,0.00016438,2]
[330209876,1719165035368,-509.21904877,0.00016438,2]
[330209877,1719165035377,-151.0,0.00016438,2]
[330209878,1719165035386,-297.462348,0.00016438,2]
[330209879,1719165035395,-151.0,0.00016438,2]
[330209880,1719165035405,-297.462348,0.00016438,2]
[330209881,1719165035414,-236.65237,0.00016438,2]
[330209882,1719165035433,-297.462348,0.00016438,2]
[330209883,1719165035444,-297.462348,0.00016438,2]
[330209884,1719165035454,-297.462348,0.00016438,2]
[330209885,1719165035463,-297.462348,0.00016438,2]
[330209886,1719165035473,-183.63615568,0.00016438,2]
[330209887,1719165035483,-297.462348,0.00016438,2]
[330209888,1719165035492,-297.462348,0.00016438,2]
[330209889,1719165035501,-297.462348,0.00016438,2]
[330209890,1719165035511,-297.462348,0.00016438,2]
[330209891,1719165035520,-297.462348,0.00016438,2]
[330209892,1719165035529,-297.462348,0.00016438,2]
[330209893,1719165035538,-297.462348,0.00016438,2]
[330209894,1719165035547,-265.50762221,0.00016438,2]
[330209895,1719165035556,-500.0,0.00016438,2]
[330209896,1719165035565,-297.462348,0.00016438,2]
[330209897,1719165035574,-297.462348,0.00016438,2]
[330209898,1719165035583,-297.462348,0.00016438,2]
[330209899,1719165035593,-583.89,0.00016438,2]
[330209900,1719165035602,-151.0,0.00016438,2]
[330209901,1719165035611,-297.462348,0.00016438,2]
[330209902,1719165035620,-500.0,0.00016438,2]
[330209903,1719165035629,-151.0,0.00016438,2]
[330209904,1719165035637,-297.462345,0.00016438,2]
[330209905,1719165035647,-151.0,0.00016438,2]
[330209906,1719165035656,-412.61716665,0.00016438,2]
[330209919,1719165039228,-10560.92625688,0.00014641,2]
[330209921,1719165039239,-3120.3809042,0.00016201,2]
[330209923,1719165039249,-2647.15982238,0.00016396,2]
[330209925,1719165039259,-1583.80277575,0.00016437,2]
[330209927,1719165039270,-305.74182143,0.00016437,2]
[330209928,1719165039279,-105.73283335,0.00016438,2]
[330209929,1719165039288,-151.0,0.00016438,2]
[330209930,1719165039298,-151.0,0.00016438,2]
[330209931,1719165039307,-215.946329,0.00016438,2]
[330209932,1719165039317,-533.95,0.00016438,2]
[330209933,1719165039326,-500.0,0.00016438,2]
[330209934,1719165039337,-500.0,0.00016438,2]
[330209935,1719165039347,-500.0,0.00016438,2]
[330209936,1719165039356,-500.0,0.00016438,2]
[330209937,1719165039366,-500.0,0.00016438,2]
[330209938,1719165039376,-500.0,0.00016438,2]
[330209939,1719165039386,-730.8,0.00016438,2]
[330209940,1719165039396,-1108.2,0.00016438,2]
[330209941,1719165039405,-500.0,0.00016438,2]
[330209942,1719165039415,-605.65,0.00016438,2]
[330209943,1719165039426,-500.0,0.00016438,2]
[330209944,1719165039436,-500.0,0.00016438,2]
[330209945,1719165039446,-352.75364752,0.00016438,2]
[330209946,1719165039456,-500.0,0.00016438,2]
[330209947,1719165039466,-1712.84,0.00016438,2]
[330209948,1719165039476,-500.0,0.00016438,2]
[330209949,1719165039486,-500.0,0.00016438,2]
[330209950,1719165039496,-449.73124058,0.00016438,2]
[330209951,1719165039505,-500.0,0.00016438,2]
[330209952,1719165039515,-955.24,0.00016438,2]
[330209953,1719165039525,-500.0,0.00016438,2]
[330209954,1719165039534,-500.0,0.00016438,2]
[330209955,1719165039544,-500.0,0.00016438,2]
[330209956,1719165039553,-500.0,0.00016438,2]
[330209957,1719165039563,-500.0,0.00016438,2]
[330209958,1719165039573,-559.31710814,0.00016438,2]
[330209959,1719165039584,-500.0,0.00016438,2]
[330209960,1719165039593,-500.0,0.00016438,2]
[330209961,1719165039603,-500.0,0.00016438,2]
[330209962,1719165039614,-567.36,0.00016438,2]
[330209963,1719165039624,-500.0,0.00016438,2]
[330209964,1719165039633,-500.0,0.00016438,2]
[330209965,1719165039643,-500.0,0.00016438,2]
[330209967,1719165039652,-500.0,0.00016438,2]
[330209968,1719165039662,-460.89676275,0.00016438,2]
[330209969,1719165039672,-597.88,0.00016438,2]
[330209970,1719165039683,-500.0,0.00016438,2]
[330209971,1719165039692,-500.0,0.00016438,2]
[330209972,1719165039702,-500.0,0.00016438,2]
[330209973,1719165039712,-516.95120687,0.00016438,2]
[330209974,1719165039721,-1455.42,0.00016438,2]
[330209975,1719165039731,-500.0,0.00016438,2]
[330209976,1719165039740,-500.0,0.00016438,2]
[330209977,1719165039749,-500.0,0.00016438,2]
[330209978,1719165039759,-500.0,0.00016438,2]
[330209979,1719165039768,-806.32,0.00016438,2]
[330209980,1719165039778,-37462.3,0.00016438,2]
[330209981,1719165039788,-500.0,0.00016438,2]
[330209982,1719165039797,-500.0,0.00016438,2]
[330209983,1719165039807,-500.0,0.00016438,2]
[330209984,1719165039816,-500.0,0.00016438,2]
[330209985,1719165039825,-500.0,0.00016438,2]
[330209986,1719165039835,-500.0,0.00016438,2]
[330209987,1719165039844,-500.0,0.00016438,2]
[330209988,1719165039854,-500.0,0.00016438,2]
[330209990,1719165039864,-500.0,0.00016438,2]
[330209992,1719165039873,-258.10119804,0.00016438,2]
[330209993,1719165039883,-500.0,0.00016438,2]
[330209995,1719165039892,-500.0,0.00016438,2]
[330209996,1719165039902,-3566.34,0.00016438,2]
[330209997,1719165039911,-503.23688875,0.00016438,2]
[330209998,1719165039921,-500.0,0.00016438,2]
[330209999,1719165039932,-500.0,0.00016438,2]
[330210000,1719165039941,-564.29,0.00016438,2]
[330210001,1719165039950,-500.0,0.00016438,2]
[330210002,1719165039960,-513.51302212,0.00016438,2]
[330210003,1719165039969,-590.36,0.00016438,2]
[330210004,1719165039979,-473.87871896,0.00016438,2]
[330210005,1719165039988,-6590.55,0.00016438,2]
[330210006,1719165039998,-500.0,0.00016438,2]
[330210007,1719165040008,-500.0,0.00016438,2]
[330210008,1719165040017,-2870.51,0.00016438,2]
[330210009,1719165040027,-1535.59,0.00016438,2]
[330210010,1719165040037,-6979.01,0.00016438,2]
[330210011,1719165040046,-500.0,0.00016438,2]
[330210012,1719165040056,-527.21023559,0.00016438,2]
[330210013,1719165040066,-500.0,0.00016438,2]
[330210014,1719165040076,-500.0,0.00016438,2]
[330210015,1719165040085,-500.0,0.00016438,2]
[330210016,1719165040095,-201.109861,0.00016438,2]
[330210017,1719165040106,-201.109861,0.00016438,2]
[330210018,1719165040119,-201.109861,0.00016438,2]
[330210019,1719165040129,-500.0,0.00016438,2]
[330210020,1719165040138,-201.109861,0.00016438,2]
[330210021,1719165040147,-969.14,0.00016438,2]
[330210022,1719165040157,-201.109861,0.00016438,2]
[330210023,1719165040167,-490.01253011,0.00016438,2]
[330210024,1719165040177,-201.109861,0.00016438,2]
[330210025,1719165040189,-201.109861,0.00016438,2]
[330210026,1719165040198,-201.109861,0.00016438,2]
[330210027,1719165040208,-1362.64,0.00016438,2]
[330210028,1719165040218,-201.109861,0.00016438,2]
[330210029,1719165040228,-201.109861,0.00016438,2]
[330210030,1719165040238,-201.109861,0.00016438,2]
[330210031,1719165040248,-201.109861,0.00016438,2]
[330210032,1719165040257,-394.67258808,0.00016438,2]
[330210033,1719165040266,-201.109861,0.00016438,2]
[330210034,1719165040276,-500.0,0.00016438,2]
[330210035,1719165040286,-1819.39,0.00016438,2]
[330210036,1719165040295,-500.0,0.00016438,2]
[330210037,1719165040304,-201.109861,0.00016438,2]
[330210038,1719165040313,-582.32,0.00016438,2]
[330210039,1719165040323,-201.109861,0.00016438,2]
[330210040,1719165040332,-201.109861,0.00016438,2]
[330210041,1719165040342,-201.109861,0.00016438,2]
[330210042,1719165040351,-201.109861,0.00016438,2]
[330210043,1719165040362,-201.109861,0.00016438,2]
[330210044,1719165040371,-201.109853,0.00016438,2]
[330210045,1719165040380,-500.0,0.00016438,2]
[330210046,1719165040390,-513.6054187,0.00016438,2]
[330210047,1719165040399,-500.0,0.00016438,2]
[330210048,1719165040409,-500.0,0.00016438,2]
[330210049,1719165040418,-716.61,0.00016438,2]
[330210050,1719165040429,-500.0,0.00016438,2]
[330210051,1719165040438,-500.0,0.00016438,2]
[330210052,1719165040447,-500.0,0.00016438,2]
[330210053,1719165040456,-500.0,0.00016438,2]
[330210054,1719165040465,-577.25,0.00016438,2]
[330210055,1719165040475,-500.0,0.00016438,2]
[330210056,1719165040484,-500.0,0.00016438,2]
[330210057,1719165040493,-500.0,0.00016438,2]
[330210058,1719165040503,-500.0,0.00016438,2]
[330210059,1719165040512,-500.0,0.00016438,2]
[330210060,1719165040521,-500.0,0.00016438,2]
[330210061,1719165040530,-500.0,0.00016438,2]
[330210062,1719165040662,-500.0,0.00016438,2]
[330210063,1719165040672,-500.0,0.00016438,2]
[330210064,1719165040683,-500.0,0.00016438,2]
[330210065,1719165040692,-508.5865464,0.00016438,2]
[330210066,1719165040701,-500.0,0.00016438,2]
[330210067,1719165040711,-500.0,0.00016438,2]
[330210068,1719165040721,-500.0,0.00016438,2]
[330210069,1719165040730,-500.0,0.00016438,2]
[330210070,1719165040740,-500.0,0.00016438,2]
[330210071,1719165040750,-7387.21,0.00016438,2]
[330210072,1719165040759,-500.0,0.00016438,2]
[330210073,1719165040768,-1422.26,0.00016438,2]
[330210074,1719165040779,-500.0,0.00016438,2]
[330210075,1719165040788,-508.7203825,0.00016438,2]
[330210076,1719165040798,-1438.99,0.00016438,2]
[330210077,1719165040808,-500.0,0.00016438,2]
[330210078,1719165040817,-1269.7,0.00016438,2]
[330210079,1719165040827,-500.0,0.00016438,2]
[330210080,1719165040836,-729.56,0.00016438,2]
[330210081,1719165040845,-500.0,0.00016438,2]
[330210082,1719165040854,-4544.75,0.00016438,2]
[330210083,1719165040863,-519.6408046,0.00016438,2]
[330210084,1719165040872,-500.0,0.00016438,2]
[330210085,1719165040882,-500.0,0.00016438,2]
[330210086,1719165040891,-22621.08,0.00016438,2]
[330210087,1719165040900,-734.16,0.00016438,2]
[330210088,1719165040910,-151.0,0.00016438,2]
[330210089,1719165040919,-151.0,0.00016438,2]
[330210090,1719165040930,-151.0,0.00016438,2]
[330210091,1719165040940,-1076.29,0.00016438,2]
[330210092,1719165040950,-151.0,0.00016438,2]
[330210093,1719165040959,-500.0,0.00016438,2]
[330210094,1719165040969,-151.0,0.00016438,2]
[330210095,1719165040978,-500.0,0.00016438,2]
[330210096,1719165040987,-1103.16,0.00016438,2]
[330210097,1719165040997,-500.0,0.00016438,2]
[330210098,1719165041006,-500.0,0.00016438,2]
[330210099,1719165041015,-500.0,0.00016438,2]
[330210100,1719165041024,-472.60205159,0.00016438,2]
[330210101,1719165041033,-2006.79,0.00016438,2]
[330210102,1719165041043,-178.65397086,0.00016438,2]
[330210103,1719165041051,-596.92,0.00016438,2]
[330210104,1719165041060,-500.0,0.00016438,2]
[330210105,1719165041069,-500.0,0.00016438,2]
[330210106,1719165041078,-500.0,0.00016438,2]
[330210107,1719165041087,-766.17,0.00016438,2]
[330210108,1719165041097,-2212.9,0.00016438,2]
[330210109,1719165041110,-631.07,0.00016438,2]
[330210110,1719165041119,-154.54983412,0.00016438,2]
[330210111,1719165041129,-606.72,0.00016438,2]
[330210112,1719165041138,-417.878803,0.00016438,2]
[330210113,1719165041148,-500.0,0.00016438,2]
[330210114,1719165041157,-417.878803,0.00016438,2]
[330210115,1719165041167,-417.878803,0.00016438,2]
[330210116,1719165041179,-417.878803,0.00016438,2]
[330210117,1719165041189,-417.878803,0.00016438,2]
[330210118,1719165041199,-417.878803,0.00016438,2]
[330210119,1719165041208,-512.75522129,0.00016438,2]
[330210120,1719165041217,-417.878803,0.00016438,2]
[330210121,1719165041227,-417.878803,0.00016438,2]
[330210122,1719165041236,-417.878803,0.00016438,2]
[330210123,1719165041245,-417.878803,0.00016438,2]
[330210124,1719165041255,-417.878803,0.00016438,2]
[330210125,1719165041263,-417.878803,0.00016438,2]
[330210126,1719165041273,-642.82,0.00016438,2]
[330210127,1719165041283,-417.878803,0.00016438,2]
[330210128,1719165041292,-500.0,0.00016438,2]
[330210129,1719165041301,-417.878803,0.00016438,2]
[330210130,1719165041311,-417.878803,0.00016438,2]
[330210131,1719165041320,-417.878803,0.00016438,2]
[330210132,1719165041329,-417.878803,0.00016438,2]
[330210133,1719165041338,-417.878803,0.00016438,2]
[330210134,1719165041347,-417.878803,0.00016438,2]
[330210135,1719165041357,-417.878806,0.00016438,2]
[330210136,1719165041366,-513.12,0.00016438,2]
[330210137,1719165041376,-500.0,0.00016438,2]
[330210138,1719165041385,-947.46,0.00016438,2]
[330210139,1719165041395,-947.46,0.00016438,2]
[330210140,1719165041405,-947.46,0.00016438,2]
[330210141,1719165041415,-522.19601186,0.00016438,2]
[330210142,1719165041426,-500.0,0.00016438,2]
[330210143,1719165041435,-500.0,0.00016438,2]
[330210144,1719165041445,-500.0,0.00016438,2]
[330210145,1719165041455,-500.0,0.00016438,2]
[330210146,1719165041464,-7443.48,0.00016438,2]
[330210147,1719165041473,-151.0,0.00016438,2]
[330210148,1719165041482,-151.0,0.00016438,2]
[330210149,1719165041491,-151.0,0.00016438,2]
[330210150,1719165041500,-151.0,0.00016438,2]
[330210151,1719165041509,-549.06,0.00016438,2]
[330210152,1719165041519,-151.0,0.00016438,2]
[330210153,1719165041528,-151.0,0.00016438,2]
[330210154,1719165041537,-151.0,0.00016438,2]
[330210155,1719165041546,-155.231127,0.00016438,2]
[330210156,1719165041556,-151.0,0.00016438,2]
[330210157,1719165041565,-151.0,0.00016438,2]
[330210158,1719165041574,-500.0,0.00016438,2]
[330210159,1719165041583,-1468.33,0.00016438,2]
[330210160,1719165041593,-151.0,0.00016438,2]
[330210161,1719165041602,-271.77677,0.00016438,2]
[330210162,1719165041612,-500.0,0.00016438,2]
[330210163,1719165041621,-500.0,0.00016438,2]
[330210164,1719165041630,-500.0,0.00016438,2]
[330210165,1719165041640,-500.0,0.00016438,2]
[330210166,1719165041649,-1746.83,0.00016438,2]
[330210167,1719165041658,-500.0,0.00016438,2]
[330210168,1719165041669,-500.0,0.00016438,2]
[330210169,1719165041678,-3403.0,0.00016438,2]
[330210170,1719165041687,-500.0,0.00016438,2]
[330210171,1719165041696,-5138.91,0.00016438,2]
[330210172,1719165041706,-541.70945954,0.00016438,2]
[330210173,1719165041715,-653.49,0.00016438,2]
[330210174,1719165041726,-560.32,0.00016438,2]
[330210175,1719165041737,-8609.06,0.00016438,2]
[330210176,1719165041746,-1382.69,0.00016438,2]
[330210177,1719165041755,-24716.41,0.00016438,2]
[330210178,1719165041764,-500.0,0.00016438,2]
[330210179,1719165041773,-500.0,0.00016438,2]
[330210180,1719165041783,-500.0,0.00016438,2]
[330210181,1719165041795,-1523.8,0.00016438,2]
[330210182,1719165041804,-7726.87,0.00016438,2]
[330210183,1719165041814,-500.0,0.00016438,2]
[330210184,1719165041824,-979.54,0.00016438,2]
[330210185,1719165041834,-500.0,0.00016438,2]
[330210186,1719165041845,-500.0,0.00016438,2]
[330210187,1719165041856,-514.90966403,0.00016438,2]
[330210188,1719165041866,-500.0,0.00016438,2]
[330210189,1719165041875,-919.68,0.00016438,2]
[330210190,1719165041885,-1546.34,0.00016438,2]
[330210191,1719165041894,-500.0,0.00016438,2]
[330210192,1719165041903,-151.0,0.00016438,2]
[330210193,1719165041912,-151.0,0.00016438,2]
[330210194,1719165041922,-151.0,0.00016438,2]
[330210195,1719165041934,-517.89,0.00016438,2]
[330210196,1719165041943,-151.0,0.00016438,2]
[330210197,1719165041953,-151.0,0.00016438,2]
[330210198,1719165041962,-151.0,0.00016438,2]